fUST/lending_fUST_20251118
["ID","MTS","AMOUNT","RATE_DAILY","PERIOD"]
[394315374,1763441447540,-1500.78697535,0.00038301,7]
[394315375,1763441447550,-1500.78697535,0.00038301,7]
[394315376,1763441447559,-1500.78697535,0.00038301,7]
[394315377,1763441447568,-1500.78697535,0.00038301,7]
[394315378,1763441447577,-1500.78697535,0.00038301,7]
[394315379,1763441447586,-1500.78697535,0.00038301,7]
[394315380,1763441447595,-1500.78697535,0.00038301,7]
[394315381,1763441447604,-1500.78697535,0.00038301,7]
[394315382,1763441447614,-1500.78697535,0.00038301,7]
[394315383,1763441447623,-1500.78697535,0.00038301,7]
[394315384,1763441447633,-1500.78697535,0.00038301,7]
[394315385,1763441447643,-1500.78697535,0.00038301,7]
[394315386,1763441447654,-1500.78697535,0.00038301,7]
[394315387,1763441447668,-1500.78697535,0.00038301,7]
[394315388,1763441447678,-1500.78697535,0.00038301,7]
[394315389,1763441447688,-1500.78697535,0.00038301,7]
[394315390,1763441447699,-2939.46010823,0.00038301,15]
[394315391,1763441447710,-2939.46010823,0.00038301,15]
[394315392,1763441447721,-1463.91049539,0.00038301,7]
[394315393,1763441447732,-1463.91049539,0.00038301,7]
[394315394,1763441447746,-1463.91049539,0.00038301,7]
[394315395,1763441447757,-1463.91049539,0.00038301,7]
[394315396,1763441447774,-1463.91049539,0.00038301,7]
[394315397,1763441447785,-1463.91049539,0.00038301,7]
[394315398,1763441447799,-1463.91049539,0.00038301,7]
[394315399,1763441447809,-1463.91049539,0.00038301,7]
[394315400,1763441447819,-1463.91049539,0.00038301,7]
[394315401,1763441447829,-1463.91049539,0.00038301,7]
[394315402,1763441447841,-1463.91049539,0.00038301,7]
[394315403,1763441447851,-1463.91049539,0.00038301,7]
[394315404,1763441447860,-1463.91049539,0.00038301,7]
[394315405,1763441447871,-1463.91049539,0.00038301,7]
[394315406,1763441447880,-1463.91049539,0.00038301,7]
[394315407,1763441447889,-1463.91049539,0.00038301,7]
[394315408,1763441447898,-1463.91049539,0.00038301,7]
[394315409,1763441447908,-1463.91049539,0.00038301,7]
[394315410,1763441447917,-1463.91049539,0.00038301,7]
[394315411,1763441447926,-1463.91049539,0.00038301,7]
[394315412,1763441447935,-1463.91049539,0.00038301,7]
[394315413,1763441447944,-1463.91049539,0.00038301,7]
[394315414,1763441447954,-1463.91049539,0.00038301,7]
[394315415,1763441447964,-1463.91049544,0.00038301,7]
[394315416,1763441447974,-1463.91049544,0.00038301,7]
[394315417,1763441447984,-500.0,0.00038301,5]
[394315418,1763441447994,-1200.0,0.00038302,5]
[394315419,1763441448003,-500.0,0.00038302,30]
[394315420,1763441448012,-5487.58258478,0.00038303,3]
[394315421,1763441448027,-500.0,0.00038311,15]
[394315422,1763441448037,-500.0,0.00038311,7]
[394315423,1763441448046,-500.0,0.00038311,15]
[394315424,1763441448056,-346.8375522,0.00038311,15]
[394315425,1763441448065,-361.62744412,0.00038311,7]
[394315426,1763441448078,-455.50832802,0.00038311,15]
[394315427,1763441448088,-234.7562161,0.00038311,15]
[394315428,1763441448098,-500.0,0.00038311,15]
[394315429,1763441448108,-500.0,0.00038311,7]
[394315430,1763441448117,-500.0,0.00038311,7]
[394315431,1763441448127,-500.0,0.00038311,15]
[394315432,1763441448137,-500.0,0.00038311,15]
[394315433,1763441448146,-500.0,0.00038311,7]
[394315434,1763441448155,-156.56,0.00038312,51]
[394315435,1763441448164,-500.0,0.00038312,2]
[394315436,1763441448173,-500.0,0.00038312,2]
[394315437,1763441448182,-500.0,0.00038312,2]
[394315438,1763441448191,-500.0,0.00038313,2]
[394315439,1763441448200,-500.0,0.00038313,2]
[394315440,1763441448209,-500.0,0.0003832,2]
[394315441,1763441448218,-1705.67,0.00038327,2]
[394315442,1763441448227,-1006.47302263,0.00038327,2]
[394315443,1763441448237,-500.0,0.00038335,2]
[394315444,1763441448246,-1705.67,0.00038336,2]
[394315445,1763441448255,-1705.67,0.00038336,2]
[394315446,1763441448267,-1705.67,0.00038336,2]
[394315447,1763441448276,-1705.67,0.00038336,2]
[394315448,1763441448286,-1705.67,0.00038336,2]
[394315449,1763441448295,-1705.67,0.00038336,2]
[394315450,1763441448304,-1705.67,0.00038336,2]
[394315451,1763441448314,-1705.67,0.00038336,2]
[394315452,1763441448323,-1705.67,0.00038336,2]
[394315453,1763441448333,-1705.67,0.00038336,2]
[394315454,1763441448343,-1705.67,0.00038336,2]
[394315455,1763441448353,-1705.67,0.00038336,2]
[394315456,1763441448363,-1705.67,0.00038336,2]
[394315457,1763441448372,-500.0,0.00038337,2]
[394315458,1763441448381,-1705.67,0.00038338,2]
[394315459,1763441448390,-1705.67,0.00038338,2]
[394315460,1763441448400,-1705.67,0.00038338,2]
[394315461,1763441448409,-519.63080104,0.00038356,2]
[394315462,1763441448418,-455.285,0.00038373,5]
[394315463,1763441448427,-2743.79129239,0.0003839,3]
[394315464,1763441448436,-202.26,0.000384,7]
[394315465,1763441448445,-1172.73,0.000384,30]
[394315466,1763441448455,-4443.26,0.000384,14]
[394315467,1763441448464,-150.0,0.00038893,2]
[394315468,1763441448473,-216.81542812,0.00039538,2]
[394315469,1763441448482,-217.472968,0.00039654,2]
[394315470,1763441448491,-168.0,0.00039788,7]
[394315471,1763441448500,-168.0,0.00039839,7]
[394315472,1763441448509,-168.0,0.00039864,120]
[394315473,1763441448521,-441.0,0.0004,120]
[394315474,1763441448530,-168.0,0.00040032,7]
[394315475,1763441448540,-168.0,0.00040063,7]
[394315476,1763441448549,-1705.67,0.00040419,2]
[394315477,1763441448558,-457.12605277,0.0004042,30]
[394315478,1763441448567,-1035.47895828,0.00040885,2]
[394315479,1763441448576,-181.00637939,0.00040918,4]
[394315480,1763441448584,-187.92286013,0.00041,120]
[394315481,1763441448593,-168.0,0.00041067,120]
[394315482,1763441448602,-168.0,0.00041226,2]
[394315483,1763441448611,-1705.67,0.00041313,2]
[394315484,1763441448620,-330.90241203,0.00041331,4]
[394315485,1763441448629,-255.98321645,0.00041331,4]
[394315486,1763441448638,-252.702434,0.00041541,120]
[394315487,1763441448647,-168.0,0.00041838,2]
[394315488,1763441448656,-168.0,0.00041933,2]
[394315489,1763441448665,-168.0,0.00041954,2]
[394315490,1763441448674,-187.92286013,0.000422,120]
[394315491,1763441448683,-168.0,0.00042208,2]
[394315492,1763441448693,-585.97302131,0.00042227,2]
[394315493,1763441448701,-168.0,0.0004223,7]
[394315494,1763441448710,-168.0,0.00042298,120]
[394315495,1763441448719,-293.85068442,0.00042301,30]
[394315496,1763441448729,-250.0,0.00042302,20]
[394315497,1763441448738,-168.0,0.00042525,2]
[394315498,1763441448748,-168.0,0.00042549,2]
[394315499,1763441448757,-151.0,0.00042579,120]
[394315500,1763441448769,-500.0,0.00042588,2]
[394315501,1763441448779,-1705.67,0.00042589,2]
[394315502,1763441448788,-1705.67,0.00042589,2]
[394315503,1763441448799,-1705.67,0.00042589,2]
[394315504,1763441448808,-1705.67,0.00042589,2]
[394315505,1763441448817,-1705.69376178,0.00042589,2]
[394315506,1763441448828,-151.0,0.00042589,120]
[394315507,1763441448836,-153.145282,0.00042589,120]
[394315508,1763441448845,-168.0,0.0004283,2]
[394315509,1763441448855,-724.02551755,0.00043089,4]
[394315510,1763441448864,-187.92286013,0.000435,120]
[394315511,1763441448873,-1323.60964813,0.00043524,4]
[394315512,1763441448882,-1023.93286582,0.00043525,4]
[394315513,1763441448891,-151.0,0.00043525,120]
[394315514,1763441448900,-1035.47895828,0.00043557,2]
[394315515,1763441448909,-216.46399394,0.00044109,30]
[394315516,1763441448918,-187.92286013,0.000448,120]
[394315517,1763441448928,-500.0,0.00045096,60]
[394315518,1763441448937,-686.85456464,0.00045153,2]
[394315519,1763441448946,-352.30450895,0.00045571,2]
[394315520,1763441448955,-573.52768817,0.00045821,60]
[394315521,1763441448965,-378.55198478,0.00045863,2]
[394315522,1763441448977,-777.09190709,0.00045971,2]
[394315523,1763441448987,-217.472968,0.00046143,2]
[394315524,1763441448996,-1035.47895828,0.00046228,2]
[394315525,1763441449005,-1562.5369814,0.00046462,2]
[394315526,1763441449015,-3750.21259419,0.00046486,2]
[394315527,1763441449026,-151.0,0.000469,24]
[394315528,1763441449035,-151.0,0.000469,27]
[394315529,1763441449045,-2743.79129239,0.000469,4]
[394315530,1763441449054,-500.0,0.00046909,30]
[394315531,1763441449063,-2281.6015898,0.0004691,2]
[394315532,1763441449072,-3587.0090872,0.0004691,2]
[394315533,1763441449081,-523.3135343,0.0004691,2]
[394315534,1763441449091,-170.002032,0.0004691,120]
[394315535,1763441449099,-1000.0,0.0004698,19]
[394315536,1763441449108,-100995.28210182,0.00047,10]
[394315537,1763441462235,151.19,0.0001,2]
[394315538,1763441462552,151.19,0.000108,2]
[394315539,1763441462989,151.19,0.000116,2]
[394315540,1763441463265,151.19,0.000125,2]
[394315541,1763441477170,816.8814974,0.00038355,120]
[394315550,1763441832803,385.48682335,0.0003836,120]
[394315560,1763442346133,-150.0,0.00030846,2]
[394315561,1763442346153,-162.79095172,0.00031347,2]
[394315562,1763442346173,-194.41204787,0.00031447,2]
[394315563,1763442346192,-1038.7821461,0.00034708,2]
[394315564,1763442346214,-1425.66829472,0.00035626,2]
[394315585,1763442430091,-217.18809872,0.0003468,2]
[394315586,1763442430112,-444.79200388,0.00035626,2]
[394315587,1763442430136,-155.50742916,0.00035675,120]
[394315588,1763442430157,-455.270784,0.00035775,2]
[394315589,1763442430183,-1661.44240701,0.00038157,2]
[394315590,1763442434086,-296.66120314,0.00038157,2]
[394315591,1763442442091,-271.93631863,0.00038157,2]
[394315592,1763442444150,-426.04198127,0.00038157,2]
[394315593,1763442444172,-112.94855186,0.00038256,2]
[394315597,1763442547106,-150.0,0.00029974,2]
[394315598,1763442547128,-150.0,0.00031402,2]
[394315599,1763442547149,-150.0,0.00032829,2]
[394315600,1763442547172,-150.0,0.00034256,2]
[394315601,1763442576987,194.41204787,0.00031765,30]
[394315642,1763442632392,-874.63818407,0.00038257,2]
[394315644,1763442632403,-310.21679657,0.00038257,2]
[394315670,1763442638421,-2692.60374964,0.00038257,2]
[394315671,1763442638431,-400.0,0.00038354,5]
[394315672,1763442638440,-558.39625036,0.00038355,2]
[394315673,1763442638451,-11571.29366713,0.00038355,2]
[394315674,1763442638462,-454.83871577,0.00038355,2]
[394315675,1763442638473,-23674.56977666,0.00038355,2]
[394315676,1763442638483,-357.54474734,0.00038355,15]
[394315677,1763442638492,-163.15737457,0.00038355,15]
[394315678,1763442638502,-500.0,0.00038355,15]
[394315679,1763442638511,-500.0,0.00038355,15]
[394315680,1763442638521,-500.0,0.00038355,15]
[394315681,1763442638530,-246.07365037,0.00038355,7]
[394315682,1763442638542,-253.92634963,0.00038355,7]
[394315683,1763442638551,-500.0,0.00038355,15]
[394315684,1763442638560,-500.0,0.00038355,15]
[394315685,1763442638574,-500.0,0.00038355,7]
[394315686,1763442638583,-500.0,0.00038355,15]
[394315687,1763442638593,-500.0,0.00038355,15]
[394315688,1763442638602,-500.0,0.00038355,7]
[394315689,1763442638612,-500.0,0.00038355,15]
[394315690,1763442638622,-500.0,0.00038355,15]
[394315691,1763442638631,-500.0,0.00038355,7]
[394315692,1763442638641,-500.0,0.00038355,15]
[394315693,1763442638651,-500.0,0.00038355,7]
[394315694,1763442638661,-500.0,0.00038355,15]
[394315695,1763442638671,-500.0,0.00038355,15]
[394315696,1763442638681,-500.0,0.00038355,15]
[394315697,1763442638691,-262.26878625,0.00038355,15]
[394315698,1763442638700,-500.0,0.00038355,7]
[394315699,1763442638710,-500.0,0.00038355,15]
[394315700,1763442638719,-500.0,0.00038355,7]
[394315701,1763442638728,-500.0,0.00038355,15]
[394315702,1763442638738,-500.0,0.00038355,7]
[394315703,1763442638747,-500.0,0.00038355,15]
[394315704,1763442638757,-500.0,0.00038355,7]
[394315705,1763442638766,-500.0,0.00038355,15]
[394315706,1763442638776,-500.0,0.00038355,7]
[394315707,1763442638785,-500.0,0.00038355,15]
[394315708,1763442638794,-500.0,0.00038355,15]
[394315709,1763442638804,-213.75375746,0.00038355,7]
[394315750,1763442640539,-286.24624254,0.00038355,7]
[394315761,1763442640549,-280.85549556,0.00038355,7]
[394315764,1763442640652,-219.14450444,0.00038355,7]
[394315766,1763442640662,-500.0,0.00038355,15]
[394315768,1763442640673,-500.0,0.00038355,7]
[394315770,1763442640682,-500.0,0.00038355,7]
[394315772,1763442640692,-345.38717929,0.00038355,15]
[394315774,1763442640701,-500.0,0.00038355,7]
[394315776,1763442640710,-500.0,0.00038355,15]
[394315778,1763442640719,-500.0,0.00038355,15]
[394315780,1763442640728,-500.0,0.00038355,7]
[394315782,1763442640737,-253.07813778,0.00038355,15]
[394315784,1763442640749,-246.92186222,0.00038355,15]
[394315786,1763442640758,-500.0,0.00038355,7]
[394315788,1763442640767,-354.83152258,0.00038355,15]
[394315999,1763442646833,-59.88783701,0.00038355,15]
[394316368,1763442743041,3000.0,0.0003836,120]
[394316385,1763442994959,196.0,0.00032877,120]
[394316388,1763443216552,672.48,0.00038377,30]
[394316389,1763443216890,672.48,0.00038377,30]
[394316390,1763443217140,672.48,0.00038377,30]
[394316391,1763443217388,672.48,0.00038377,30]
[394316392,1763443217635,672.48,0.00038377,30]
[394316393,1763443217899,672.48,0.00038377,120]
[394316394,1763443218168,672.48,0.00038377,120]
[394316395,1763443218421,672.48,0.00038377,120]
[394316396,1763443218664,672.48,0.00038377,120]
[394316397,1763443218912,672.48,0.00038377,120]
[394316398,1763443219168,672.48,0.00038377,120]
[394316399,1763443219421,672.48,0.00038377,120]
[394316400,1763443219668,672.48,0.00038377,120]
[394316401,1763443219920,672.48,0.00038377,120]
[394316402,1763443220165,672.48,0.00038377,120]
[394316403,1763443220433,672.48,0.00038377,120]
[394316404,1763443220706,672.48,0.00038377,120]
[394316405,1763443220951,672.48,0.00038377,120]
[394316406,1763443221217,672.48,0.00038377,120]
[394316407,1763443221461,672.48,0.00038377,120]
[394316408,1763443221688,672.48,0.00038377,120]
[394316409,1763443221963,672.48,0.00038377,120]
[394316410,1763443222208,672.48,0.00038377,120]
[394316411,1763443222535,672.56040241,0.00038377,120]
[394316448,1763443502151,196.78362864,0.00038377,30]
[394316490,1763443548282,-157.88191654,0.00025547,2]
[394316491,1763443548301,-49.2834275,0.00027777,2]
[394316497,1763443599092,-179.57357416,0.00027877,2]
[394316498,1763443599113,-106.52673974,0.00028977,7]
[394316502,1763443626096,-73.04683442,0.00028977,7]
[394316503,1763443626118,-150.0,0.0002996,2]
[394316504,1763443626140,-150.0,0.00031387,2]
[394316505,1763443626163,-150.0,0.00032813,2]
[394316506,1763443626182,-189.526825,0.00034051,120]
[394316507,1763443626204,-150.0,0.0003424,2]
[394316508,1763443626225,-150.0,0.00035667,2]
[394316509,1763443626247,-440.4335205,0.00036366,30]
[394316510,1763443626266,-184.33827056,0.00037936,2]
[394316511,1763443627206,-31.54879939,0.00037936,2]
[394316512,1763443627225,-400.0,0.00038252,2]
[394316513,1763443627245,-1530.42692088,0.00038253,2]
[394316514,1763443630085,-1071.47439961,0.00038253,2]
[394316516,1763443640159,555.0,0.00032877,120]
[394316529,1763443747108,-150.0,0.0002589,2]
[394316530,1763443747128,-271.20511066,0.0002789,2]
[394316531,1763443747147,-1012.41960092,0.00034,2]
[394316532,1763443752090,-395.71115556,0.00036515,2]
[394316533,1763443752109,-174.94471515,0.00038104,2]
[394316534,1763443752128,-155.50742916,0.00038204,120]
[394316535,1763443752148,-2569.54142654,0.00038236,2]
[394316538,1763443777070,154.10221765,0.00031447,2]
[394316579,1763443832620,-154.10221765,0.00037358,110]
[394316580,1763443832630,-441.0,0.0003825,3]
[394316581,1763443832640,-2306.81806512,0.00038251,2]
[394316582,1763443832680,-760.72065884,0.00038251,2]
[394316583,1763443832689,-180.78,0.00038341,2]
[394316584,1763443832698,-6323.44865133,0.00038351,2]
[394316585,1763443832710,-500.0,0.00038354,2]
[394316586,1763443832719,-500.0,0.00038354,2]
[394316587,1763443832729,-150.0,0.00038354,2]
[394316588,1763443832738,-978.9565787,0.00038355,2]
[394316589,1763443832748,-160.997,0.00038355,51]
[394316590,1763443832757,-500.0,0.00038357,2]
[394316591,1763443832766,-500.0,0.00038359,2]
[394316592,1763443832775,-492.82420899,0.00038376,2]
[394316593,1763443832786,-7.17579101,0.00038376,2]
[394316594,1763443832795,-150.0,0.00038376,7]
[394316595,1763443832804,-150.0,0.00038376,7]
[394316596,1763443832813,-1326.19420899,0.00038377,2]
[394316597,1763443832824,-347.497214,0.00038377,2]
[394316614,1763443838668,-500.0,0.0003835,15]
[394316615,1763443838677,-508.35601448,0.0003835,15]
[394316616,1763443838687,-500.0,0.0003835,15]
[394316617,1763443838696,-500.0,0.0003835,7]
[394316618,1763443838806,-500.0,0.0003835,15]
[394316619,1763443838816,-500.0,0.0003835,15]
[394316620,1763443838826,-500.0,0.0003835,15]
[394316621,1763443838835,-500.0,0.0003835,7]
[394316622,1763443838845,-500.0,0.0003835,15]
[394316623,1763443838855,-500.0,0.0003835,15]
[394316624,1763443838864,-139.73465743,0.0003835,15]
[394316625,1763443838911,-360.26534257,0.0003835,15]
[394316626,1763443838921,-500.0,0.0003835,15]
[394316627,1763443838931,-500.0,0.0003835,7]
[394316628,1763443838940,-500.0,0.0003835,15]
[394316629,1763443838950,-500.0,0.0003835,15]
[394316630,1763443838959,-500.0,0.0003835,15]
[394316631,1763443838969,-500.0,0.0003835,7]
[394316632,1763443838979,-500.0,0.0003835,15]
[394316633,1763443838988,-500.0,0.0003835,15]
[394316634,1763443838998,-500.0,0.0003835,15]
[394316635,1763443839007,-500.0,0.0003835,7]
[394316636,1763443839016,-500.0,0.0003835,15]
[394316637,1763443839026,-500.0,0.0003835,15]
[394316638,1763443839035,-500.0,0.0003835,15]
[394316639,1763443839045,-500.0,0.0003835,15]
[394316640,1763443839054,-500.0,0.0003835,15]
[394316641,1763443839064,-301.22687863,0.0003835,15]
[394316642,1763443839073,-500.0,0.0003835,7]
[394316643,1763443839083,-500.0,0.0003835,15]
[394316644,1763443839093,-500.0,0.0003835,15]
[394316645,1763443839103,-500.0,0.0003835,15]
[394316646,1763443839114,-500.0,0.0003835,7]
[394316647,1763443839124,-500.0,0.0003835,15]
[394316648,1763443839135,-500.0,0.0003835,15]
[394316649,1763443839144,-163.5877788,0.0003835,15]
[394316650,1763443839157,-336.4122212,0.0003835,15]
[394316651,1763443839167,-500.0,0.0003835,7]
[394316652,1763443839176,-500.0,0.0003835,15]
[394316653,1763443839186,-500.0,0.0003835,15]
[394316654,1763443839196,-500.0,0.0003835,7]
[394316655,1763443839206,-335.0,0.0003835,15]
[394316656,1763443839216,-500.0,0.0003835,15]
[394316657,1763443839226,-302.65515262,0.0003835,15]
[394316658,1763443839236,-320.72210683,0.0003835,7]
[394316659,1763443839245,-500.0,0.0003835,15]
[394316660,1763443839255,-500.0,0.0003835,15]
[394316661,1763443839265,-500.0,0.0003835,7]
[394316662,1763443839275,-500.0,0.0003835,15]
[394316663,1763443839284,-500.0,0.0003835,15]
[394316664,1763443839293,-610.56018693,0.0003835,15]
[394316665,1763443839302,-500.0,0.0003835,7]
[394316666,1763443839311,-500.0,0.0003835,15]
[394316667,1763443839320,-500.0,0.0003835,7]
[394316668,1763443839329,-500.0,0.0003835,15]
[394316669,1763443839339,-500.0,0.0003835,15]
[394316670,1763443839347,-500.0,0.0003835,15]
[394316671,1763443839356,-500.0,0.0003835,7]
[394316672,1763443839365,-500.0,0.0003835,15]
[394316673,1763443839374,-500.0,0.0003835,7]
[394316674,1763443839385,-500.0,0.0003835,15]
[394316675,1763443839395,-500.0,0.0003835,7]
[394316676,1763443839404,-500.0,0.0003835,15]
[394316677,1763443839413,-500.0,0.0003835,7]
[394316678,1763443839426,-500.0,0.0003835,15]
[394316679,1763443839435,-500.0,0.0003835,7]
[394316680,1763443839443,-500.0,0.0003835,15]
[394316681,1763443839452,-500.0,0.0003835,7]
[394316682,1763443839461,-500.0,0.0003835,15]
[394316683,1763443839470,-500.0,0.0003835,7]
[394316684,1763443839480,-500.0,0.0003835,15]
[394316685,1763443839489,-500.0,0.0003835,15]
[394316686,1763443839498,-500.0,0.0003835,7]
[394316687,1763443839506,-500.0,0.0003835,15]
[394316688,1763443839515,-500.0,0.0003835,15]
[394316689,1763443839524,-500.0,0.0003835,7]
[394316690,1763443839534,-500.0,0.0003835,15]
[394316691,1763443839542,-127.41943039,0.0003835,7]
[394316821,1763443845417,-372.58056961,0.0003835,7]
[394316822,1763443845427,-500.0,0.0003835,15]
[394316823,1763443845436,-500.0,0.0003835,15]
[394316824,1763443845444,-500.0,0.0003835,7]
[394316825,1763443845453,-500.0,0.0003835,15]
[394316826,1763443845462,-500.0,0.0003835,7]
[394316827,1763443845471,-18141.91468801,0.00038377,2]
[394316829,1763443845480,-500.0,0.00038377,7]
[394316831,1763443845489,-500.0,0.00038377,7]
[394316832,1763443845498,-331.706987,0.00038377,7]
[394316834,1763443845507,-1180.67116765,0.00038818,2]
[394316835,1763443845516,-14390.75458833,0.00038998,2]
[394316836,1763443845525,-300.0,0.00039065,90]
[394316837,1763443845534,-300.0,0.00039065,90]
[394316839,1763443845543,-300.0,0.00039065,90]
[394316841,1763443845552,-300.0,0.00039065,90]
[394316842,1763443845561,-300.0,0.00039065,90]
[394316843,1763443845574,-300.0,0.00039065,90]
[394316844,1763443845583,-300.0,0.00039065,90]
[394316845,1763443845592,-300.0,0.00039065,90]
[394316846,1763443845601,-300.0,0.00039065,90]
[394316848,1763443845610,-300.0,0.00039065,90]
[394316850,1763443845620,-300.0,0.00039065,90]
[394316851,1763443845630,-300.0,0.00039065,90]
[394316852,1763443845639,-300.0,0.00039065,90]
[394316853,1763443845650,-300.0,0.00039065,90]
[394316854,1763443845659,-300.0,0.00039065,90]
[394316856,1763443845668,-600.0,0.00039065,90]
[394316858,1763443845677,-182.04,0.000391,7]
[394316859,1763443845686,-189.526825,0.00039727,120]
[394316860,1763443845697,-177.0,0.0004,90]
[394316861,1763443845709,-168.0,0.00040038,2]
[394316862,1763443845721,-178.0,0.00042288,90]
[394316863,1763443845733,-168.0,0.00042485,2]
[394316864,1763443845744,-1054.75143835,0.00042589,2]
[394316865,1763443845755,-253.44882145,0.00042589,2]
[394316866,1763443845765,-1235.10187814,0.00042589,2]
[394316867,1763443845775,-1873.23855452,0.00042589,2]
[394316868,1763443845786,-1746.70833417,0.00042589,2]
[394316869,1763443845797,-168.0,0.00042829,2]
[394316870,1763443845808,-720.0,0.00042971,90]
[394316871,1763443845819,-413.0,0.00043141,2]
[394316872,1763443845830,-168.0,0.00043232,2]
[394316873,1763443845841,-168.0,0.00043251,2]
[394316874,1763443845852,-3067.53872393,0.00044901,28]
[394316875,1763443845863,-151.368646,0.0004491,7]
[394316876,1763443845875,-189.526825,0.00045402,120]
[394316877,1763443845887,-189.27599239,0.00045972,2]
[394316878,1763443845899,-1000.0,0.00045989,2]
[394316879,1763443845910,-371.135,0.00046141,2]
[394316880,1763443845921,-456.20787862,0.00046248,2]
[394316881,1763443845932,-151.0,0.000469,21]
[394316882,1763443845942,-151.0,0.000469,22]
[394316883,1763443845954,-1795.73574156,0.00046909,30]
[394316884,1763443845965,-34429.22558618,0.00047,10]
[394316885,1763443845980,-1000.0,0.00047,10]
[394316886,1763443845992,-45789.04647081,0.00047,10]
[394316887,1763443846004,-542.41,0.00047,10]
[394316888,1763443846017,-43754.14809549,0.00047,10]
[394316903,1763443846755,-20813.50000005,0.00047,10]
[394316905,1763443846768,-313.0,0.00047,10]
[394316906,1763443846814,-454.52684659,0.00047,10]
[394316907,1763443846932,-1438.72,0.00047,10]
[394316908,1763443846946,-1938.48136983,0.00047,10]
[394316909,1763443846996,-77763.52508656,0.00047,10]
[394316910,1763443847009,-9755.0,0.00047,10]
[394316911,1763443847022,-11061.68414065,0.00047,10]
[394316981,1763444539903,3000.0,0.00038383,120]
[394317055,1763444719123,5000.0,0.00038383,74]
[394317105,1763444744129,-154.72427821,0.0002589,2]
[394317106,1763444744149,-154.10221764,0.00031765,30]
[394317107,1763444744167,-465.50414695,0.0003234,6]
[394317151,1763444825672,-1984.85307592,0.0003234,6]
[394317152,1763444829277,-251.62,0.0003234,6]
[394317153,1763444830811,-263.39478317,0.0003234,6]
[394317155,1763444834082,-190.96676405,0.0003234,6]
[394317166,1763444840085,-1341.91998346,0.0003234,6]
[394317176,1763444846103,-195.725671,0.00013699,2]
[394317177,1763444846124,-129.85344646,0.00020187,2]
[394317179,1763444849071,-65.87222454,0.00020187,2]
[394317180,1763444849091,-195.725671,0.00026676,2]
[394317181,1763444849109,-138.50822477,0.0003234,6]
[394317289,1763444945148,-363.23302168,0.0003234,6]
[394317290,1763444945175,-195.725671,0.00033165,2]
[394317291,1763444945196,-156.78333431,0.00034633,2]
[394317292,1763444945217,-155.50742916,0.00035178,120]
[394317293,1763444945242,-371.3910266,0.00035279,2]
[394317294,1763444945262,-227.635392,0.0003561,2]
[394317306,1763444957119,-1293.84,0.00037951,19]
[394317307,1763444957139,-400.0,0.00037989,2]
[394317308,1763444957158,-1109.73110745,0.0003799,2]
[394317339,1763444987816,156.58366548,0.0002589,2]
[394317401,1763445031858,-311.51,0.00037951,19]
[394317402,1763445031868,-5561.33090397,0.0003799,2]
[394317403,1763445031879,-2300.654043,0.0003815,2]
[394317404,1763445031900,-256.70706288,0.00038156,2]
[394317405,1763445031920,-180.57014505,0.000382,2]
[394317407,1763445031940,-180.79,0.00038231,2]
[394317409,1763445031960,-404.9741709,0.0003824,7]
[394317412,1763445031980,-57800.5534321,0.00038241,3]
[394317415,1763445032001,-180.79,0.00038241,2]
[394317417,1763445032023,-1319.87,0.00038241,10]
[394317419,1763445032045,-1099.89,0.00038241,10]
[394317420,1763445032065,-164.32935127,0.0003825,15]